[Event "Early-Titled-Tuesday-Blitz-April-02-2024"]
[Site "Chess.com"]
[Date "2024.04.02"]
[Round "4"]
[White "Baku_Boulevard"]
[Black "maciek_92"]
[Result "1-0"]
[WhiteElo "3043"]
[BlackElo "2849"]
[TimeControl "180+1"]
[EndTime "8:38:45 PDT"]
[Termination "Baku_Boulevard won by checkmate"]

1. e4 {[%clk 0:03:00.9]} 1... c5 {[%clk 0:03:00.3]} 2. Nf3 {[%clk 0:03:01]} 2...
e6 {[%clk 0:03:00.7]} 3. c3 {[%clk 0:03:01.2]} 3... Nf6 {[%clk 0:03:00.5]} 4. e5
{[%clk 0:03:01.7]} 4... Nd5 {[%clk 0:03:01.2]} 5. a3 {[%clk 0:03:02.3]} 5... d6
{[%clk 0:03:00.3]} 6. d4 {[%clk 0:03:01.6]} 6... cxd4 {[%clk 0:02:58.1]} 7. c4
{[%clk 0:03:00.5]} 7... Nc7 {[%clk 0:02:57.1]} 8. exd6 {[%clk 0:02:58.8]} 8...
Bxd6 {[%clk 0:02:56.7]} 9. Qxd4 {[%clk 0:02:56.8]} 9... e5 {[%clk 0:02:56.4]}
10. Qd1 {[%clk 0:02:48.8]} 10... e4 {[%clk 0:02:47.8]} 11. Ng5 {[%clk
0:02:39.7]} 11... O-O {[%clk 0:02:44.5]} 12. Nc3 {[%clk 0:02:39.5]} 12... Bf5
{[%clk 0:02:42]} 13. Be2 {[%clk 0:02:36.5]} 13... Re8 {[%clk 0:02:39.9]} 14. g4
{[%clk 0:02:30.4]} 14... Bg6 {[%clk 0:02:29.8]} 15. h4 {[%clk 0:02:30.3]} 15...
h5 {[%clk 0:01:45]} 16. gxh5 {[%clk 0:02:25.2]} 16... Bf5 {[%clk 0:01:45.7]} 17.
Rg1 {[%clk 0:02:16.5]} 17... Nc6 {[%clk 0:01:39.4]} 18. h6 {[%clk 0:02:16.9]}
18... g6 {[%clk 0:01:39.2]} 19. h7+ {[%clk 0:02:17]} 19... Kg7 {[%clk
0:01:39.6]} 20. h5 {[%clk 0:02:17.2]} 20... Ne5 {[%clk 0:01:12.6]} 21. Ngxe4
{[%clk 0:01:33.3]} 21... Be7 {[%clk 0:01:04.7]} 22. Bf4 {[%clk 0:01:26.5]} 22...
Bf6 {[%clk 0:00:52.2]} 23. Qxd8 {[%clk 0:01:02.3]} 23... Bxd8 {[%clk 0:00:53.1]}
24. O-O-O {[%clk 0:01:01.6]} 24... Kxh7 {[%clk 0:00:45.9]} 25. Nd6 {[%clk
0:00:47.4]} 25... Bf6 {[%clk 0:00:16]} 26. Nce4 {[%clk 0:00:40.5]} 26... Bh8
{[%clk 0:00:13.4]} 27. Ng5+ {[%clk 0:00:37.9]} 27... Kg8 {[%clk 0:00:13.4]} 28.
h6 {[%clk 0:00:29.9]} 28... Re7 {[%clk 0:00:09.7]} 29. h7+ {[%clk 0:00:30]}
29... Kf8 {[%clk 0:00:10.4]} 30. Nxf5 {[%clk 0:00:23.8]} 30... gxf5 {[%clk
0:00:10.2]} 31. Bh5 {[%clk 0:00:22]} 31... Ng6 {[%clk 0:00:04.6]} 32. Bd6 {[%clk
0:00:18.5]} 32... Ne8 {[%clk 0:00:03.3]} 33. Ne6+ {[%clk 0:00:15.6]} 33... fxe6
{[%clk 0:00:02.4]} 34. Rxg6 {[%clk 0:00:16.3]} 34... Nxd6 {[%clk 0:00:02.8]} 35.
Rg8# {[%clk 0:00:16.6]} 1-0

[Event "Early-Titled-Tuesday-Blitz-April-02-2024"]
[Site "Chess.com"]
[Date "2024.04.02"]
[Round "4"]
[White "Brahianzevich"]
[Black "Bob_2004"]
[Result "0-1"]
[WhiteElo "2527"]
[BlackElo "2379"]
[TimeControl "180+1"]
[EndTime "8:38:45 PDT"]
[Termination "Bob_2004 won by resignation"]

1. e4 {[%clk 0:02:59.2]} 1... c5 {[%clk 0:02:55.6]} 2. Nf3 {[%clk 0:02:58.8]}
2... g6 {[%clk 0:02:55.8]} 3. d4 {[%clk 0:02:58.7]} 3... cxd4 {[%clk 0:02:56.4]}
4. Nxd4 {[%clk 0:02:59.6]} 4... Nc6 {[%clk 0:02:56.4]} 5. Nc3 {[%clk 0:03:00.2]}
5... Bg7 {[%clk 0:02:55.9]} 6. Nde2 {[%clk 0:03:00.9]} 6... Nf6 {[%clk
0:02:53.3]} 7. g3 {[%clk 0:03:00.9]} 7... O-O {[%clk 0:02:52.2]} 8. Bg2 {[%clk
0:03:01.1]} 8... Rb8 {[%clk 0:02:50.6]} 9. a4 {[%clk 0:03:00.7]} 9... d6 {[%clk
0:02:46]} 10. O-O {[%clk 0:02:52.4]} 10... b6 {[%clk 0:02:40.4]} 11. h3 {[%clk
0:02:51.2]} 11... Ba6 {[%clk 0:02:33.6]} 12. Be3 {[%clk 0:02:39.4]} 12... Rc8
{[%clk 0:02:32.4]} 13. Nd5 {[%clk 0:02:24.3]} 13... Nxd5 {[%clk 0:02:20]} 14.
exd5 {[%clk 0:02:25.2]} 14... Nb4 {[%clk 0:02:20.1]} 15. c3 {[%clk 0:01:56.8]}
15... Nd3 {[%clk 0:02:19]} 16. Qd2 {[%clk 0:01:56.2]} 16... Qc7 {[%clk
0:01:55.7]} 17. Rfd1 {[%clk 0:00:52.1]} 17... Ne5 {[%clk 0:01:30.8]} 18. Nd4
{[%clk 0:00:45.5]} 18... Nc4 {[%clk 0:01:29.6]} 19. Qc1 {[%clk 0:00:41.7]} 19...
Nxe3 {[%clk 0:01:27.8]} 20. Qxe3 {[%clk 0:00:41.2]} 20... Bxd4 {[%clk
0:01:02.4]} 21. Rxd4 {[%clk 0:00:40.4]} 21... Rfe8 {[%clk 0:00:58.6]} 22. h4
{[%clk 0:00:39.7]} 22... h5 {[%clk 0:00:47.5]} 23. g4 {[%clk 0:00:30.9]} 23...
hxg4 {[%clk 0:00:44]} 24. Rxg4 {[%clk 0:00:30.5]} 24... Qd7 {[%clk 0:00:34.3]}
25. Qg3 {[%clk 0:00:27.3]} 25... Rc4 {[%clk 0:00:30.7]} 26. Rg5 {[%clk
0:00:21.6]} 26... Rxa4 {[%clk 0:00:14.4]} 27. Rxa4 {[%clk 0:00:21.2]} 27... Qxa4
{[%clk 0:00:14.9]} 28. h5 {[%clk 0:00:21.7]} 28... Kg7 {[%clk 0:00:12.1]} 29.
hxg6 {[%clk 0:00:21.3]} 29... f6 {[%clk 0:00:11.6]} 30. Rh5 {[%clk 0:00:20.5]}
30... Qd1+ {[%clk 0:00:10.9]} 31. Kh2 {[%clk 0:00:18]} 31... Qxh5+ {[%clk
0:00:11.6]} 32. Bh3 {[%clk 0:00:17.2]} 32... Rh8 {[%clk 0:00:10.1]} 33. Qe3
{[%clk 0:00:15.1]} 33... Qxh3+ {[%clk 0:00:08.2]} 34. Qxh3 {[%clk 0:00:15.2]}
34... Rxh3+ {[%clk 0:00:08.7]} 35. Kxh3 {[%clk 0:00:16.1]} 35... Kxg6 {[%clk
0:00:09.1]} 0-1

[Event "Early-Titled-Tuesday-Blitz-April-02-2024"]
[Site "Chess.com"]
[Date "2024.04.02"]
[Round "4"]
[White "LiadCuba"]
[Black "Hamisandwich"]
[Result "0-1"]
[WhiteElo "2553"]
[BlackElo "2710"]
[TimeControl "180+1"]
[EndTime "8:38:47 PDT"]
[Termination "Hamisandwich won on time"]

1. d4 {[%clk 0:03:00.9]} 1... g6 {[%clk 0:02:59.9]} 2. c4 {[%clk 0:03:01.2]}
2... Bg7 {[%clk 0:02:59.3]} 3. e4 {[%clk 0:03:01.5]} 3... d6 {[%clk 0:02:58.6]}
4. Nc3 {[%clk 0:03:00.9]} 4... e5 {[%clk 0:02:58.6]} 5. Nf3 {[%clk 0:02:59.6]}
5... Nc6 {[%clk 0:02:53.6]} 6. Be3 {[%clk 0:02:58]} 6... Bg4 {[%clk 0:02:53.1]}
7. dxe5 {[%clk 0:02:42.8]} 7... Nxe5 {[%clk 0:02:52.8]} 8. Be2 {[%clk
0:02:39.5]} 8... Bxf3 {[%clk 0:02:43.2]} 9. Bxf3 {[%clk 0:02:40.4]} 9... Nf6
{[%clk 0:02:39]} 10. O-O {[%clk 0:02:37.9]} 10... Nxf3+ {[%clk 0:02:28.6]} 11.
Qxf3 {[%clk 0:02:38.8]} 11... Nd7 {[%clk 0:02:29.5]} 12. Qe2 {[%clk 0:02:29]}
12... Bxc3 {[%clk 0:02:21.3]} 13. bxc3 {[%clk 0:02:29.9]} 13... O-O {[%clk
0:02:21.9]} 14. f3 {[%clk 0:02:25.3]} 14... b6 {[%clk 0:02:15.5]} 15. Rfd1
{[%clk 0:02:22.6]} 15... Qe7 {[%clk 0:02:14.6]} 16. a4 {[%clk 0:02:07.7]} 16...
a5 {[%clk 0:02:11.7]} 17. Qf1 {[%clk 0:01:54.9]} 17... f5 {[%clk 0:02:07.9]} 18.
Bh6 {[%clk 0:01:54.1]} 18... Rf7 {[%clk 0:02:02]} 19. exf5 {[%clk 0:01:48.3]}
19... Rxf5 {[%clk 0:02:02.9]} 20. Rd4 {[%clk 0:01:36.8]} 20... Qf6 {[%clk
0:01:54.3]} 21. Bd2 {[%clk 0:01:29.4]} 21... Re8 {[%clk 0:01:50]} 22. Re1 {[%clk
0:01:15.3]} 22... Rfe5 {[%clk 0:01:35.9]} 23. Rxe5 {[%clk 0:01:09.2]} 23... Rxe5
{[%clk 0:01:36.8]} 24. h4 {[%clk 0:00:59.8]} 24... Nc5 {[%clk 0:01:32.4]} 25.
Bf4 {[%clk 0:00:47]} 25... Re8 {[%clk 0:01:26.9]} 26. Bg5 {[%clk 0:00:33.6]}
26... Qe6 {[%clk 0:01:10.5]} 27. h5 {[%clk 0:00:25.3]} 27... Qf5 {[%clk
0:01:04.1]} 28. Rg4 {[%clk 0:00:19.3]} 28... gxh5 {[%clk 0:00:52.6]} 29. Rg3
{[%clk 0:00:19.5]} 29... Kf7 {[%clk 0:00:52.9]} 30. Kh2 {[%clk 0:00:09.4]} 30...
Rg8 {[%clk 0:00:44]} 31. Bh4 {[%clk 0:00:06.2]} 31... Rxg3 {[%clk 0:00:31.3]}
32. Bxg3 {[%clk 0:00:07.1]} 32... Qd3 {[%clk 0:00:28.2]} 33. Qe1 {[%clk
0:00:05.3]} 33... Qxc4 {[%clk 0:00:24.5]} 34. Qe3 {[%clk 0:00:04.4]} 34... h4
{[%clk 0:00:20.5]} 35. Bf2 {[%clk 0:00:04.5]} 35... Ne6 {[%clk 0:00:20.6]} 0-1

[Event "Early-Titled-Tuesday-Blitz-April-02-2024"]
[Site "Chess.com"]
[Date "2024.04.02"]
[Round "4"]
[White "RamonManon0g"]
[Black "Zavgorodniy_Sergiy"]
[Result "0-1"]
[WhiteElo "2403"]
[BlackElo "2644"]
[TimeControl "180+1"]
[EndTime "8:38:47 PDT"]
[Termination "Zavgorodniy_Sergiy won on time"]

1. e4 {[%clk 0:03:00.9]} 1... c6 {[%clk 0:02:59.9]} 2. Nc3 {[%clk 0:02:56.7]}
2... d5 {[%clk 0:03:00.8]} 3. Qf3 {[%clk 0:02:56.6]} 3... d4 {[%clk 0:02:59.8]}
4. Bc4 {[%clk 0:02:37.9]} 4... e6 {[%clk 0:02:59.5]} 5. Nce2 {[%clk 0:02:34.3]}
5... b5 {[%clk 0:02:55]} 6. Bb3 {[%clk 0:02:34]} 6... c5 {[%clk 0:02:48.2]} 7.
e5 {[%clk 0:02:28.9]} 7... Qc7 {[%clk 0:02:27.1]} 8. Qxa8 {[%clk 0:02:23.4]}
8... Bb7 {[%clk 0:02:25.3]} 9. Qxa7 {[%clk 0:02:23.4]} 9... Nc6 {[%clk
0:02:24.7]} 10. Qxb7 {[%clk 0:01:26.6]} 10... Qxb7 {[%clk 0:02:24.1]} 11. c3
{[%clk 0:01:27.5]} 11... Nxe5 {[%clk 0:02:19.8]} 12. Kf1 {[%clk 0:01:27.9]}
12... d3 {[%clk 0:02:11.5]} 13. Nf4 {[%clk 0:01:27.4]} 13... c4 {[%clk
0:02:10.7]} 14. Bd1 {[%clk 0:01:27.5]} 14... Nf6 {[%clk 0:01:59.9]} 15. Nf3
{[%clk 0:01:27.3]} 15... Bd6 {[%clk 0:01:57]} 16. Nxe5 {[%clk 0:01:21.3]} 16...
Bxe5 {[%clk 0:01:57.9]} 17. Bf3 {[%clk 0:01:21.6]} 17... Qc7 {[%clk 0:01:51]}
18. Nh3 {[%clk 0:01:22.5]} 18... O-O {[%clk 0:01:48.4]} 19. a4 {[%clk
0:01:20.2]} 19... bxa4 {[%clk 0:01:38.6]} 20. Rxa4 {[%clk 0:01:21.1]} 20... h6
{[%clk 0:01:15.1]} 21. g3 {[%clk 0:01:20.5]} 21... g5 {[%clk 0:01:12.8]} 22. Ng1
{[%clk 0:01:12.4]} 22... g4 {[%clk 0:01:09.1]} 23. Bg2 {[%clk 0:01:12.4]} 23...
h5 {[%clk 0:01:05.5]} 24. h3 {[%clk 0:01:12.3]} 24... Qc5 {[%clk 0:00:54.9]} 25.
hxg4 {[%clk 0:01:10]} 25... hxg4 {[%clk 0:00:55.8]} 26. Rh4 {[%clk 0:01:10.1]}
26... Qb5 {[%clk 0:00:53.9]} 27. Ra7 {[%clk 0:01:04.4]} 27... Qb3 {[%clk
0:00:49.8]} 28. Ke1 {[%clk 0:01:04.6]} 28... Qc2 {[%clk 0:00:45.2]} 29. Ra1
{[%clk 0:01:03.6]} 29... Rb8 {[%clk 0:00:26.7]} 30. Bc6 {[%clk 0:00:51.5]} 30...
Rxb2 {[%clk 0:00:20.8]} 31. Bxb2 {[%clk 0:00:27.1]} 31... Qxb2 {[%clk
0:00:21.7]} 32. Rd1 {[%clk 0:00:26.6]} 32... Qb6 {[%clk 0:00:19.9]} 33. Bg2
{[%clk 0:00:22.6]} 33... Bxg3 {[%clk 0:00:19.1]} 34. Rxg4+ {[%clk 0:00:09.5]}
34... Nxg4 {[%clk 0:00:18.7]} 35. Nh3 {[%clk 0:00:07.4]} 35... Nxf2 {[%clk
0:00:16.7]} 0-1

[Event "Early-Titled-Tuesday-Blitz-April-02-2024"]
[Site "Chess.com"]
[Date "2024.04.02"]
[Round "4"]
[White "KATPAH"]
[Black "Tejas_Rama"]
[Result "1-0"]
[WhiteElo "2676"]
[BlackElo "2508"]
[TimeControl "180+1"]
[EndTime "8:38:48 PDT"]
[Termination "KATPAH won by resignation"]

1. e4 {[%clk 0:03:00.3]} 1... e5 {[%clk 0:02:58.1]} 2. d4 {[%clk 0:03:00.6]}
2... exd4 {[%clk 0:02:58.3]} 3. c3 {[%clk 0:03:01]} 3... Qe7 {[%clk 0:02:58.5]}
4. Bd3 {[%clk 0:03:00.7]} 4... d5 {[%clk 0:02:55.9]} 5. e5 {[%clk 0:03:00.9]}
5... Qxe5+ {[%clk 0:02:54.3]} 6. Ne2 {[%clk 0:03:01.6]} 6... Nf6 {[%clk
0:02:45.9]} 7. cxd4 {[%clk 0:02:59.1]} 7... Bb4+ {[%clk 0:02:41.9]} 8. Nc3
{[%clk 0:02:58.2]} 8... Qe7 {[%clk 0:02:20.6]} 9. O-O {[%clk 0:02:55.2]} 9...
O-O {[%clk 0:02:19.1]} 10. Bg5 {[%clk 0:02:54.6]} 10... c6 {[%clk 0:02:19.1]}
11. Re1 {[%clk 0:02:52.5]} 11... Qd8 {[%clk 0:02:15.1]} 12. Ng3 {[%clk
0:02:43.2]} 12... h6 {[%clk 0:02:11.2]} 13. Bf4 {[%clk 0:02:34]} 13... Bd6
{[%clk 0:02:02.3]} 14. Be5 {[%clk 0:02:32.1]} 14... Ng4 {[%clk 0:01:41.3]} 15.
Bc2 {[%clk 0:02:00.2]} 15... Nxe5 {[%clk 0:00:48]} 16. dxe5 {[%clk 0:02:01.1]}
16... Bc5 {[%clk 0:00:48.6]} 17. Qd3 {[%clk 0:01:57.5]} 17... g6 {[%clk
0:00:47.1]} 18. e6 {[%clk 0:01:53.7]} 18... f5 {[%clk 0:00:34.9]} 19. Rad1
{[%clk 0:01:29.6]} 19... Qf6 {[%clk 0:00:29.1]} 20. Bb3 {[%clk 0:00:49.3]} 20...
Kh7 {[%clk 0:00:18.7]} 21. Bxd5 {[%clk 0:00:46.5]} 21... cxd5 {[%clk 0:00:18.3]}
22. Nxd5 {[%clk 0:00:47.4]} 22... Qg7 {[%clk 0:00:13]} 23. e7 {[%clk 0:00:38.1]}
23... Re8 {[%clk 0:00:13.4]} 24. Nc7 {[%clk 0:00:38.5]} 24... Rxe7 {[%clk
0:00:11.9]} 25. Rxe7 {[%clk 0:00:36.7]} 25... Bxe7 {[%clk 0:00:12.8]} 26. Nxa8
{[%clk 0:00:36.4]} 26... Nc6 {[%clk 0:00:10.7]} 27. Nc7 {[%clk 0:00:31.9]} 27...
Bc5 {[%clk 0:00:08.5]} 28. Ne8 {[%clk 0:00:26.2]} 28... Qe7 {[%clk 0:00:08.7]}
29. Nd6 {[%clk 0:00:25.6]} 29... Be6 {[%clk 0:00:08.6]} 30. Nc4 {[%clk
0:00:21.1]} 30... Nb4 {[%clk 0:00:07.4]} 31. Qe2 {[%clk 0:00:20.4]} 31... Qf7
{[%clk 0:00:03.6]} 32. Ne5 {[%clk 0:00:19.8]} 32... Qg7 {[%clk 0:00:04.2]} 33.
Nf3 {[%clk 0:00:19]} 33... Bf7 {[%clk 0:00:03.8]} 34. Qe5 {[%clk 0:00:18]} 34...
Qxe5 {[%clk 0:00:02.1]} 35. Nxe5 {[%clk 0:00:18.9]} 35... Nd5 {[%clk 0:00:02.3]}
36. Nxf7 {[%clk 0:00:19]} 36... Nf4 {[%clk 0:00:02]} 37. Rd7 {[%clk 0:00:18.4]}
1-0

[Event "Early-Titled-Tuesday-Blitz-April-02-2024"]
[Site "Chess.com"]
[Date "2024.04.02"]
[Round "4"]
[White "DanielSaiz01"]
[Black "Kunalm64"]
[Result "0-1"]
[WhiteElo "2258"]
[BlackElo "2622"]
[TimeControl "180+1"]
[EndTime "8:38:48 PDT"]
[Termination "Kunalm64 won on time"]

1. d4 {[%clk 0:02:25.4]} 1... Nf6 {[%clk 0:02:55.3]} 2. c4 {[%clk 0:02:24.6]}
2... e6 {[%clk 0:02:54.7]} 3. Nf3 {[%clk 0:02:24.6]} 3... Bb4+ {[%clk
0:02:53.9]} 4. Qd2 {[%clk 0:02:22.6]} 4... a5 {[%clk 0:02:33.9]} 5. Nc3 {[%clk
0:02:14]} 5... b6 {[%clk 0:02:33.3]} 6. a3 {[%clk 0:02:05.7]} 6... Ne4 {[%clk
0:02:25]} 7. Qc2 {[%clk 0:02:04.9]} 7... Bxc3+ {[%clk 0:02:22.9]} 8. bxc3 {[%clk
0:02:05.8]} 8... f5 {[%clk 0:02:22.5]} 9. Nd2 {[%clk 0:01:46.1]} 9... Bb7 {[%clk
0:02:00.8]} 10. Nxe4 {[%clk 0:01:39.2]} 10... Bxe4 {[%clk 0:01:59.5]} 11. Qd1
{[%clk 0:01:26.9]} 11... O-O {[%clk 0:01:57]} 12. f3 {[%clk 0:01:22]} 12... Bb7
{[%clk 0:01:56.9]} 13. e3 {[%clk 0:01:22.1]} 13... d6 {[%clk 0:01:57]} 14. Bd3
{[%clk 0:01:22]} 14... Qh4+ {[%clk 0:01:53.9]} 15. g3 {[%clk 0:01:11.8]} 15...
Qh3 {[%clk 0:01:53.6]} 16. Kf2 {[%clk 0:01:01.7]} 16... Nd7 {[%clk 0:01:52]} 17.
Bf1 {[%clk 0:00:46]} 17... Qh5 {[%clk 0:01:49.7]} 18. Bg2 {[%clk 0:00:46.6]}
18... Nf6 {[%clk 0:01:45.3]} 19. h3 {[%clk 0:00:39.7]} 19... Rae8 {[%clk
0:01:39]} 20. Rf1 {[%clk 0:00:36.7]} 20... Qg6 {[%clk 0:01:34.9]} 21. Qe1 {[%clk
0:00:30.7]} 21... Nh5 {[%clk 0:01:33.4]} 22. Kg1 {[%clk 0:00:11.8]} 22... Nxg3
{[%clk 0:01:32.7]} 23. Rf2 {[%clk 0:00:11.4]} 23... h5 {[%clk 0:01:27.6]} 24.
Kh2 {[%clk 0:00:09.9]} 24... h4 {[%clk 0:01:26.8]} 25. Bd2 {[%clk 0:00:09]}
25... e5 {[%clk 0:01:11]} 26. d5 {[%clk 0:00:07]} 26... f4 {[%clk 0:01:10.4]}
27. e4 {[%clk 0:00:06.6]} 27... Bc8 {[%clk 0:01:05.9]} 28. Qd1 {[%clk
0:00:03.8]} 28... Bd7 {[%clk 0:01:05.6]} 29. Qc2 {[%clk 0:00:03.5]} 29... Qh7
{[%clk 0:00:48.3]} 30. Rg1 {[%clk 0:00:03.9]} 30... Rf6 {[%clk 0:00:47.4]} 31.
Be1 {[%clk 0:00:04.2]} 31... Rg6 {[%clk 0:00:47.5]} 32. Rd2 {[%clk 0:00:03.8]}
32... Rg5 {[%clk 0:00:47.4]} 33. c5 {[%clk 0:00:02.3]} 33... bxc5 {[%clk
0:00:45.3]} 34. c4 {[%clk 0:00:02.9]} 34... Rb8 {[%clk 0:00:43.9]} 35. Qc1
{[%clk 0:00:02.6]} 35... Qg6 {[%clk 0:00:40.3]} 36. Rb2 {[%clk 0:00:03.1]} 36...
Qe8 {[%clk 0:00:40.4]} 37. Rxb8 {[%clk 0:00:02.8]} 37... Qxb8 {[%clk 0:00:40.6]}
38. Bxa5 {[%clk 0:00:02.9]} 38... Ne2 {[%clk 0:00:40.8]} 39. Qd2 {[%clk
0:00:02.3]} 39... Nxg1 {[%clk 0:00:40.8]} 40. Kxg1 {[%clk 0:00:03.2]} 40... Bxh3
{[%clk 0:00:39]} 0-1

[Event "Early-Titled-Tuesday-Blitz-April-02-2024"]
[Site "Chess.com"]
[Date "2024.04.02"]
[Round "4"]
[White "Meri-Arabidze"]
[Black "Yaacovn"]
[Result "0-1"]
[WhiteElo "2686"]
[BlackElo "2853"]
[TimeControl "180+1"]
[EndTime "8:38:50 PDT"]
[Termination "Yaacovn won on time"]

1. d4 {[%clk 0:03:00.9]} 1... Nf6 {[%clk 0:02:56.1]} 2. c4 {[%clk 0:03:01.4]}
2... e5 {[%clk 0:02:55.8]} 3. dxe5 {[%clk 0:03:00.9]} 3... Ne4 {[%clk
0:02:56.1]} 4. Nf3 {[%clk 0:02:53.8]} 4... Nc6 {[%clk 0:02:35.4]} 5. Nbd2 {[%clk
0:02:51.1]} 5... Bb4 {[%clk 0:02:35.1]} 6. a3 {[%clk 0:02:49.2]} 6... Nxd2
{[%clk 0:02:34.8]} 7. Bxd2 {[%clk 0:02:49.2]} 7... Bxd2+ {[%clk 0:02:35.3]} 8.
Qxd2 {[%clk 0:02:49.4]} 8... O-O {[%clk 0:02:36.2]} 9. e3 {[%clk 0:02:44.2]}
9... Qe7 {[%clk 0:02:35.8]} 10. Qc3 {[%clk 0:02:38.8]} 10... Re8 {[%clk
0:02:35.7]} 11. Be2 {[%clk 0:02:38.7]} 11... Nxe5 {[%clk 0:02:35]} 12. Nxe5
{[%clk 0:02:38.9]} 12... Qxe5 {[%clk 0:02:35.9]} 13. Qxe5 {[%clk 0:02:39.4]}
13... Rxe5 {[%clk 0:02:36.7]} 14. O-O {[%clk 0:02:27.5]} 14... d6 {[%clk
0:02:35.7]} 15. Bf3 {[%clk 0:02:27.7]} 15... Bd7 {[%clk 0:02:35.5]} 16. Bxb7
{[%clk 0:02:00.3]} 16... Rb8 {[%clk 0:02:35.2]} 17. Bd5 {[%clk 0:02:00.5]} 17...
Rxb2 {[%clk 0:02:35.4]} 18. Rfb1 {[%clk 0:01:57.5]} 18... Rb6 {[%clk 0:02:35.4]}
19. a4 {[%clk 0:01:49.4]} 19... c6 {[%clk 0:02:03.8]} 20. Bf3 {[%clk 0:01:48.8]}
20... Ra5 {[%clk 0:01:55.9]} 21. Rd1 {[%clk 0:01:38.3]} 21... c5 {[%clk
0:01:53.4]} 22. Rd2 {[%clk 0:01:29.2]} 22... Rxa4 {[%clk 0:01:51.4]} 23. Rad1
{[%clk 0:01:20.7]} 23... Rab4 {[%clk 0:01:45.4]} 24. h4 {[%clk 0:00:55.7]} 24...
Kf8 {[%clk 0:01:18.7]} 25. Rxd6 {[%clk 0:00:53.2]} 25... Rxd6 {[%clk 0:01:19.6]}
26. Rxd6 {[%clk 0:00:53.5]} 26... Ke7 {[%clk 0:01:20.3]} 27. Ra6 {[%clk
0:00:53.2]} 27... Ra4 {[%clk 0:01:20.3]} 28. Rxa4 {[%clk 0:00:48.6]} 28... Bxa4
{[%clk 0:01:21.2]} 29. Kf1 {[%clk 0:00:29.9]} 29... Bb3 {[%clk 0:01:20.6]} 30.
Bd5 {[%clk 0:00:20.8]} 30... a5 {[%clk 0:01:19.9]} 31. Ke2 {[%clk 0:00:21.2]}
31... a4 {[%clk 0:01:20.2]} 32. Kd2 {[%clk 0:00:21.8]} 32... a3 {[%clk
0:01:20.5]} 33. Kc3 {[%clk 0:00:21.9]} 33... a2 {[%clk 0:01:20.7]} 34. Kb2
{[%clk 0:00:22.5]} 34... f6 {[%clk 0:01:19.1]} 35. e4 {[%clk 0:00:20.5]} 35...
h6 {[%clk 0:00:56.3]} 36. f4 {[%clk 0:00:20.1]} 36... Kd6 {[%clk 0:00:54.7]} 37.
g3 {[%clk 0:00:15.7]} 37... Kd7 {[%clk 0:00:53.8]} 38. e5 {[%clk 0:00:14.4]}
38... fxe5 {[%clk 0:00:53.5]} 39. fxe5 {[%clk 0:00:15.2]} 39... Ke7 {[%clk
0:00:54]} 40. g4 {[%clk 0:00:14.1]} 40... g5 {[%clk 0:00:53.6]} 41. hxg5 {[%clk
0:00:12.9]} 41... hxg5 {[%clk 0:00:54.5]} 42. e6 {[%clk 0:00:12.4]} 42... Kd6
{[%clk 0:00:51.6]} 43. Ka1 {[%clk 0:00:11.6]} 43... Bd1 {[%clk 0:00:51.5]} 44.
Kxa2 {[%clk 0:00:06.2]} 44... Bxg4 {[%clk 0:00:51.6]} 45. Kb3 {[%clk 0:00:05.2]}
45... Bxe6 {[%clk 0:00:51.7]} 46. Bg2 {[%clk 0:00:04.2]} 46... Ke5 {[%clk
0:00:51.5]} 47. Ka4 {[%clk 0:00:04.6]} 47... Kd4 {[%clk 0:00:51.4]} 48. Kb5
{[%clk 0:00:02.8]} 48... Bxc4+ {[%clk 0:00:51.6]} 49. Kc6 {[%clk 0:00:02.3]}
49... Bd3 {[%clk 0:00:51.3]} 0-1

[Event "Early-Titled-Tuesday-Blitz-April-02-2024"]
[Site "Chess.com"]
[Date "2024.04.02"]
[Round "4"]
[White "lefonghua"]
[Black "sergoy"]
[Result "1/2-1/2"]
[WhiteElo "2616"]
[BlackElo "2888"]
[TimeControl "180+1"]
[EndTime "8:38:50 PDT"]
[Termination "Game drawn by repetition"]

1. e4 {[%clk 0:03:00.9]} 1... c5 {[%clk 0:03:00.1]} 2. b4 {[%clk 0:03:00.7]}
2... e5 {[%clk 0:02:58.7]} 3. Nf3 {[%clk 0:02:55.1]} 3... Nc6 {[%clk 0:02:59.3]}
4. b5 {[%clk 0:02:47.5]} 4... Nd4 {[%clk 0:02:59.3]} 5. c3 {[%clk 0:02:45.6]}
5... Nxf3+ {[%clk 0:02:59.5]} 6. Qxf3 {[%clk 0:02:46.5]} 6... Nf6 {[%clk
0:03:00]} 7. Bc4 {[%clk 0:02:44.6]} 7... Be7 {[%clk 0:02:59.9]} 8. O-O {[%clk
0:02:40.8]} 8... O-O {[%clk 0:02:59.3]} 9. h3 {[%clk 0:02:40.6]} 9... b6 {[%clk
0:02:55.1]} 10. d3 {[%clk 0:02:34.7]} 10... Bb7 {[%clk 0:02:45.8]} 11. Bg5
{[%clk 0:02:27.8]} 11... d5 {[%clk 0:02:45.7]} 12. Bxf6 {[%clk 0:02:20.3]} 12...
dxc4 {[%clk 0:02:35.6]} 13. Bxe7 {[%clk 0:02:12]} 13... Qxe7 {[%clk 0:02:36.5]}
14. dxc4 {[%clk 0:02:07.5]} 14... f5 {[%clk 0:02:26]} 15. Nd2 {[%clk 0:02:04.3]}
15... Rad8 {[%clk 0:02:12]} 16. Qe2 {[%clk 0:02:00.6]} 16... Qg5 {[%clk
0:02:06.4]} 17. Rad1 {[%clk 0:01:47.4]} 17... Qf4 {[%clk 0:02:00.3]} 18. Rfe1
{[%clk 0:01:36.3]} 18... fxe4 {[%clk 0:01:58.8]} 19. Nf1 {[%clk 0:01:34.9]}
19... Rd3 {[%clk 0:01:57.4]} 20. Ne3 {[%clk 0:01:18.2]} 20... h6 {[%clk
0:01:52.1]} 21. Rf1 {[%clk 0:01:12.9]} 21... Rfd8 {[%clk 0:01:39.1]} 22. Qh5
{[%clk 0:01:07.7]} 22... R8d6 {[%clk 0:01:16.9]} 23. Qe8+ {[%clk 0:00:51.1]}
23... Kh7 {[%clk 0:01:16.8]} 24. Qb8 {[%clk 0:00:51.1]} 24... Rxd1 {[%clk
0:00:39.5]} 25. Rxd1 {[%clk 0:00:44.6]} 25... Rxd1+ {[%clk 0:00:39.2]} 26. Nxd1
{[%clk 0:00:45.5]} 26... Qc1 {[%clk 0:00:39.5]} 27. Qxb7 {[%clk 0:00:42.4]}
27... Qxd1+ {[%clk 0:00:39.2]} 28. Kh2 {[%clk 0:00:43.1]} 28... Qc2 {[%clk
0:00:23.1]} 29. Qf7 {[%clk 0:00:38.4]} 29... e3 {[%clk 0:00:12.2]} 30. fxe3
{[%clk 0:00:37.4]} 30... Qe4 {[%clk 0:00:12.9]} 31. Qxa7 {[%clk 0:00:20.4]}
31... Qxe3 {[%clk 0:00:10.5]} 32. Qxb6 {[%clk 0:00:20.3]} 32... Qf4+ {[%clk
0:00:10.4]} 33. Kh1 {[%clk 0:00:19.9]} 33... e4 {[%clk 0:00:08.5]} 34. Qe6
{[%clk 0:00:19.3]} 34... e3 {[%clk 0:00:08]} 35. b6 {[%clk 0:00:19.6]} 35...
Qf1+ {[%clk 0:00:08.3]} 36. Kh2 {[%clk 0:00:20.1]} 36... Qf4+ {[%clk 0:00:07.6]}
37. Kh1 {[%clk 0:00:19.8]} 37... Qf1+ {[%clk 0:00:07.9]} 38. Kh2 {[%clk
0:00:20.4]} 38... Qf4+ {[%clk 0:00:04.5]} 39. Kh1 {[%clk 0:00:20.5]} 1/2-1/2